fUST/lending_fUST_20251004
["ID","MTS","AMOUNT","RATE_DAILY","PERIOD"]
[389135385,1759587076163,-546.41,0.00020547,2]
[389135386,1759587076172,-500.0,0.00020547,2]
[389135387,1759587076181,-597.42,0.00020547,2]
[389135388,1759587076191,-619.54893394,0.00020547,2]
[389135389,1759587076200,-500.0,0.00020547,2]
[389135390,1759587076209,-4259.16,0.00020547,2]
[389135391,1759587076218,-5211.29,0.00020547,2]
[389135392,1759587076227,-500.0,0.00020548,2]
[389135393,1759587076237,-500.0,0.00020548,2]
[389135394,1759587076246,-1624.0,0.00020548,2]
[389135395,1759587076256,-163.06937381,0.00020548,2]
[389135396,1759587076266,-500.0,0.00020548,2]
[389135397,1759587076275,-500.0,0.00020548,2]
[389135398,1759587076285,-500.0,0.00020548,2]
[389135399,1759587076295,-199.47788949,0.00020548,2]
[389135400,1759587076305,-259.05629991,0.00020548,2]
[389135401,1759587076315,-500.0,0.00020548,2]
[389135402,1759587076324,-313.4226316,0.00020548,2]
[389135403,1759587076334,-1901.27575938,0.0002056,2]
[389135404,1759587076344,-1381.22099437,0.00020568,2]
[389135405,1759587076353,-1500.0,0.00020568,2]
[389135406,1759587076363,-1500.0,0.00020568,2]
[389135407,1759587076373,-1504.99689927,0.00020568,2]
[389135408,1759587076382,-1500.0,0.00020568,2]
[389135409,1759587076391,-1500.0,0.00020568,2]
[389135410,1759587076401,-1500.0,0.00020568,2]
[389135411,1759587076411,-1622.43468,0.00020568,2]
[389135412,1759587076420,-1500.0,0.00020568,2]
[389135413,1759587076429,-1500.0,0.00020568,2]
[389135414,1759587076439,-1500.0,0.00020568,2]
[389135415,1759587076448,-1500.0,0.00020568,2]
[389135416,1759587076458,-1500.0,0.00020568,2]
[389135417,1759587076467,-1500.0,0.00020568,2]
[389135418,1759587076476,-501.29388359,0.00020568,2]
[389135419,1759587076500,-1500.0,0.00020568,2]
[389135420,1759587076517,-768.47350391,0.00020568,2]
[389135421,1759587076535,-1500.0,0.00020568,2]
[389135422,1759587076555,-1500.0,0.00020568,2]
[389135423,1759587076572,-455.59347907,0.00020568,2]
[389135424,1759587076590,-1009.87836425,0.00020568,2]
[389135425,1759587076607,-940.32014047,0.00020568,2]
[389135426,1759587076622,-1500.0,0.00020568,2]
[389135427,1759587076641,-1500.0,0.00020568,2]
[389135428,1759587076665,-1500.0,0.00020568,2]
[389135429,1759587076680,-1500.0,0.00020568,2]
[389135430,1759587076701,-1524.85676905,0.00020568,2]
[389135431,1759587076716,-640.58795883,0.00020568,2]
[389135432,1759587076733,-500.0,0.00020607,2]
[389135433,1759587076749,-500.0,0.00020607,2]
[389135434,1759587076765,-642.55,0.00020608,2]
[389135435,1759587076779,-500.0,0.00020608,2]
[389135436,1759587076796,-500.0,0.00020608,2]
[389135437,1759587076810,-816.17,0.00020608,2]
[389135438,1759587076826,-1471.55,0.00020608,2]
[389135439,1759587076841,-500.0,0.00020608,2]
[389135440,1759587076857,-756.71,0.00020608,2]
[389135441,1759587076871,-920.13,0.00020608,2]
[389135442,1759587076887,-966.5,0.00020608,2]
[389135443,1759587076903,-500.0,0.00020608,2]
[389135444,1759587076919,-500.0,0.00020608,2]
[389135445,1759587076934,-1265.8,0.00020608,2]
[389135446,1759587076949,-500.0,0.00020608,2]
[389135447,1759587076966,-500.0,0.00020608,2]
[389135448,1759587076980,-500.0,0.00020608,2]
[389135449,1759587076996,-500.0,0.00020608,2]
[389135450,1759587077011,-500.0,0.00020608,2]
[389135451,1759587077026,-500.0,0.00020608,2]
[389135452,1759587077041,-500.0,0.00020608,2]
[389135453,1759587077057,-500.0,0.00020608,2]
[389135454,1759587077073,-567.84,0.00020608,2]
[389135455,1759587077088,-500.0,0.00020608,2]
[389135456,1759587077104,-500.0,0.00020608,2]
[389135457,1759587077120,-500.0,0.00020608,2]
[389135458,1759587077136,-825.92,0.00020608,2]
[389135459,1759587077151,-500.0,0.00020608,2]
[389135460,1759587077166,-500.0,0.00020608,2]
[389135461,1759587077183,-500.0,0.00020608,2]
[389135462,1759587077199,-500.0,0.00020608,2]
[389135463,1759587077216,-500.0,0.00020608,2]
[389135464,1759587077230,-500.0,0.00020608,2]
[389135465,1759587077245,-913.53,0.00020608,2]
[389135466,1759587077261,-500.0,0.00020608,2]
[389135467,1759587077276,-500.0,0.00020608,2]
[389135468,1759587077291,-841.49,0.00020608,2]
[389135469,1759587077307,-500.0,0.00020608,2]
[389135470,1759587077321,-500.0,0.00020608,2]
[389135471,1759587077336,-2029.7,0.00020608,2]
[389135472,1759587077351,-633.78,0.00020608,2]
[389135473,1759587077367,-500.0,0.00020608,2]
[389135474,1759587077382,-1538.14,0.00020608,2]
[389135475,1759587077397,-500.0,0.00020608,2]
[389135476,1759587077412,-500.0,0.00020608,2]
[389135477,1759587077427,-500.0,0.00020608,2]
[389135478,1759587077443,-500.0,0.00020608,2]
[389135479,1759587077459,-646.53,0.00020608,2]
[389135480,1759587077473,-500.0,0.00020619,2]
[389135481,1759587077488,-811.65,0.00020619,2]
[389135482,1759587077503,-500.0,0.00020619,2]
[389135483,1759587077518,-500.0,0.00020619,2]
[389135484,1759587077534,-515.11,0.00020619,2]
[389135485,1759587077549,-500.0,0.00020619,2]
[389135486,1759587077564,-500.0,0.00020619,2]
[389135487,1759587077578,-500.0,0.00020619,2]
[389135488,1759587077594,-612.17,0.00020619,2]
[389135489,1759587077610,-700.87,0.00020619,2]
[389135490,1759587077624,-500.0,0.00020619,2]
[389135491,1759587077639,-500.0,0.00020619,2]
[389135492,1759587077654,-500.0,0.00020619,2]
[389135493,1759587077669,-500.0,0.00020619,2]
[389135494,1759587077683,-584.0,0.00020629,2]
[389135495,1759587077692,-260.0,0.00020652,2]
[389135496,1759587077855,-2926.0,0.00020752,2]
[389135497,1759587077878,-999.631,0.00020752,2]
[389135498,1759587077888,-2158.0,0.00020752,2]
[389135499,1759587077897,-635.361,0.00020752,2]
[389135500,1759587077907,-599.999999,0.0002078,2]
[389135501,1759587077917,-500.0,0.00020821,2]
[389135502,1759587077927,-500.0,0.00020821,2]
[389135503,1759587077938,-500.0,0.00020821,2]
[389135504,1759587077947,-500.0,0.00020821,2]
[389135505,1759587077957,-669.27,0.00020821,2]
[389135506,1759587077967,-500.0,0.00020821,2]
[389135507,1759587077977,-500.0,0.00020821,2]
[389135508,1759587077987,-500.0,0.00020821,2]
[389135509,1759587077998,-875.2,0.00020821,2]
[389135510,1759587078007,-500.0,0.00020821,2]
[389135511,1759587078017,-500.0,0.00020821,2]
[389135512,1759587078027,-500.0,0.00020821,2]
[389135513,1759587078037,-836.97,0.00020821,2]
[389135514,1759587078046,-500.0,0.00020821,2]
[389135515,1759587078056,-587.09,0.00020821,2]
[389135516,1759587078066,-177.53501071,0.00020821,2]
[389135517,1759587078076,-2784.11,0.00020821,2]
[389135518,1759587078086,-1878.18,0.00020821,2]
[389135519,1759587078095,-500.0,0.00020821,2]
[389135520,1759587078105,-500.0,0.00020821,2]
[389135521,1759587078115,-500.0,0.00020821,2]
[389135522,1759587078126,-1472.77,0.00020821,2]
[389135523,1759587078136,-500.0,0.00020821,2]
[389135524,1759587078145,-500.0,0.00020821,2]
[389135525,1759587078155,-500.0,0.00020821,2]
[389135526,1759587078165,-700.24,0.00020821,2]
[389135527,1759587078174,-500.0,0.00020821,2]
[389135528,1759587078183,-1477.21,0.00020821,2]
[389135529,1759587078192,-2712.04,0.00020821,2]
[389135530,1759587078201,-500.0,0.00020821,2]
[389135531,1759587078211,-1053.54,0.00020821,2]
[389135532,1759587078221,-863.98,0.00020821,2]
[389135533,1759587078230,-500.0,0.00020821,2]
[389135534,1759587078239,-627.1,0.00020821,2]
[389135535,1759587078248,-500.0,0.00020821,2]
[389135536,1759587078258,-500.0,0.00020821,2]
[389135537,1759587078267,-558.65,0.00020821,2]
[389135538,1759587078276,-500.0,0.00020821,2]
[389135539,1759587078286,-761.81,0.00020821,2]
[389135540,1759587078295,-500.0,0.00020821,2]
[389135541,1759587078305,-987.82,0.00020821,2]
[389135542,1759587078315,-772.17,0.00020821,2]
[389135543,1759587078324,-500.0,0.00020821,2]
[389135544,1759587078333,-3073.86,0.00020821,2]
[389135545,1759587078342,-682.18,0.00020821,2]
[389135546,1759587078352,-874.08,0.00020821,2]
[389135547,1759587078361,-602.54,0.00020821,2]
[389135548,1759587078371,-592.41,0.00020821,2]
[389135549,1759587078380,-500.0,0.00020821,2]
[389135550,1759587078389,-765.97,0.00020821,2]
[389135551,1759587078400,-1314.15,0.00020821,2]
[389135552,1759587078409,-500.0,0.00020821,2]
[389135553,1759587078418,-500.0,0.00020821,2]
[389135554,1759587078428,-705.66,0.00020821,2]
[389135555,1759587078437,-1302.5,0.00020821,2]
[389135556,1759587078447,-695.67,0.00020821,2]
[389135557,1759587078456,-500.0,0.00020821,2]
[389135558,1759587078465,-1830.47,0.00020821,2]
[389135559,1759587078474,-789.01,0.00020821,2]
[389135560,1759587078484,-500.0,0.00020821,2]
[389135561,1759587078494,-500.0,0.00020821,2]
[389135562,1759587078504,-933.1,0.00020821,2]
[389135563,1759587078513,-6406.25,0.00020821,2]
[389135564,1759587078522,-500.0,0.00020821,2]
[389135565,1759587078531,-373.70332433,0.00020821,2]
[389135566,1759587078540,-1426.03,0.00020821,2]
[389135567,1759587078549,-403.99493144,0.00020821,2]
[389135568,1759587078559,-1683.3,0.00020821,2]
[389135569,1759587078568,-3799.61,0.00020821,2]
[389135570,1759587078579,-500.0,0.00020821,2]
[389135571,1759587078588,-1077.63,0.00020821,2]
[389135572,1759587078598,-994.5,0.00020821,2]
[389135573,1759587078608,-1634.28,0.00020821,2]
[389135574,1759587078617,-4955.65,0.00020821,2]
[389135575,1759587078627,-988.75,0.00020821,2]
[389135576,1759587078636,-500.0,0.00020821,2]
[389135577,1759587078645,-500.4,0.00020821,2]
[389135578,1759587078658,-2843.73,0.00020821,2]
[389135579,1759587078668,-2387.49,0.00020821,2]
[389135580,1759587078678,-500.0,0.00020821,2]
[389135581,1759587078688,-654.12,0.00020821,2]
[389135582,1759587078700,-1317.14,0.00020821,2]
[389135583,1759587078710,-2833.76,0.00020821,2]
[389135584,1759587078720,-500.0,0.00020821,2]
[389135585,1759587078731,-824.34,0.00020821,2]
[389135586,1759587078740,-500.0,0.00020821,2]
[389135587,1759587078750,-500.0,0.00020821,2]
[389135588,1759587078760,-500.0,0.00020821,2]
[389135589,1759587078769,-1457.59,0.00020821,2]
[389135590,1759587078779,-500.0,0.00020821,2]
[389135591,1759587078788,-500.0,0.00020821,2]
[389135592,1759587078798,-576.97027057,0.00020821,2]
[389135593,1759587078807,-500.0,0.00020821,2]
[389135594,1759587078817,-522.62,0.00020821,2]
[389135595,1759587078827,-621.93,0.00020821,2]
[389135596,1759587078836,-564.68,0.00020821,2]
[389135597,1759587078846,-500.0,0.00020821,2]
[389135598,1759587078855,-551.93,0.00020821,2]
[389135599,1759587078865,-500.0,0.00020821,2]
[389135600,1759587078874,-567.74,0.00020821,2]
[389135601,1759587078884,-4232.15,0.00020821,2]
[389135602,1759587078893,-500.0,0.00020821,2]
[389135603,1759587078902,-500.0,0.00020821,2]
[389135604,1759587078911,-500.0,0.00020821,2]
[389135605,1759587078921,-500.0,0.00020821,2]
[389135606,1759587078931,-500.0,0.00020821,2]
[389135607,1759587078942,-549.22,0.00020821,2]
[389135608,1759587078953,-861.06,0.00020821,2]
[389135609,1759587078963,-1037.49,0.00020821,2]
[389135610,1759587078971,-500.0,0.00020821,2]
[389135611,1759587078981,-500.0,0.00020821,2]
[389135612,1759587078991,-265.86667692,0.00020821,2]
[389135613,1759587079000,-1045.73,0.00020821,2]
[389135614,1759587079009,-2433.95,0.00020821,2]
[389135615,1759587079019,-1741.89,0.00020821,2]
[389135616,1759587079029,-500.0,0.00020821,2]
[389135617,1759587079038,-1238.03,0.00020821,2]
[389135618,1759587079047,-877.45,0.00020821,2]
[389135619,1759587079056,-551.63,0.00020821,2]
[389135620,1759587079065,-940.74,0.00020821,2]
[389135621,1759587079075,-952.89,0.00020821,2]
[389135622,1759587079084,-1411.48,0.00020821,2]
[389135623,1759587079094,-1425.57,0.00020821,2]
[389135624,1759587079103,-783.79,0.00020821,2]
[389135625,1759587079113,-1226.05,0.00020821,2]
[389135626,1759587079123,-500.0,0.00020821,2]
[389135627,1759587079133,-1859.36,0.00020821,2]
[389135628,1759587079143,-500.0,0.00020821,2]
[389135629,1759587079152,-1438.35,0.00020821,2]
[389135630,1759587079162,-1188.35,0.00020821,2]
[389135631,1759587079171,-500.0,0.00020821,2]
[389135632,1759587079181,-500.0,0.00020821,2]
[389135633,1759587079191,-970.53,0.00020821,2]
[389135634,1759587079202,-2324.7,0.00020821,2]
[389135635,1759587079211,-500.0,0.00020821,2]
[389135636,1759587079220,-999.86,0.00020821,2]
[389135637,1759587079230,-500.0,0.00020821,2]
[389135638,1759587079239,-500.0,0.00020821,2]
[389135639,1759587079249,-632.59,0.00020821,2]
[389135640,1759587079258,-500.73,0.00020821,2]
[389135641,1759587079267,-1334.88,0.00020821,2]
[389135642,1759587079276,-500.0,0.00020821,2]
[389135643,1759587079285,-586.07,0.00020821,2]
[389135644,1759587079296,-1167.55,0.00020821,2]
[389135645,1759587079306,-500.0,0.00020821,2]
[389135646,1759587079316,-2110.39,0.00020821,2]
[389135647,1759587079327,-500.0,0.00020821,2]
[389135648,1759587079337,-748.13,0.00020821,2]
[389135649,1759587079346,-3024.98,0.00020821,2]
[389135650,1759587079355,-841.18,0.00020821,2]
[389135651,1759587079364,-500.0,0.00020821,2]
[389135652,1759587079374,-816.0,0.00020821,2]
[389135653,1759587079383,-782.47,0.00020821,2]
[389135654,1759587079394,-235.87,0.00020821,2]
[389135655,1759587079405,-1446.22,0.00020821,2]
[389135656,1759587079415,-613.3,0.00020821,2]
[389135657,1759587079424,-615.53,0.00020821,2]
[389135658,1759587079433,-500.0,0.00020821,2]
[389135659,1759587079442,-1035.33,0.00020821,2]
[389135660,1759587079452,-3076.24,0.00020821,2]
[389135661,1759587079462,-1236.23,0.00020821,2]
[389135662,1759587079471,-1348.77,0.00020821,2]
[389135663,1759587079481,-606.23,0.00020821,2]
[389135664,1759587079491,-393.94018703,0.00020821,2]
[389135665,1759587079501,-844.67,0.00020821,2]
[389135666,1759587079511,-500.0,0.00020821,2]
[389135667,1759587079519,-1068.77,0.00020821,2]
[389135668,1759587079529,-153.41722808,0.00020821,2]
[389135669,1759587079538,-500.0,0.00020821,2]
[389135670,1759587079547,-1007.6,0.00020821,2]
[389135671,1759587079557,-500.0,0.00020821,2]
[389135672,1759587079566,-470.08892628,0.00020821,2]
[389135673,1759587079576,-1461.15,0.00020821,2]
[389135674,1759587079586,-6357.54,0.00020821,2]
[389135675,1759587079595,-500.0,0.00020821,2]
[389135676,1759587079604,-500.0,0.00020821,2]
[389135677,1759587079613,-3259.7,0.00020821,2]
[389135678,1759587079623,-3670.35,0.00020821,2]
[389135679,1759587079632,-500.0,0.00020821,2]
[389135680,1759587079641,-645.29,0.00020821,2]
[389135681,1759587079650,-580.18,0.00020821,2]
[389135682,1759587079660,-500.0,0.00020821,2]
[389135683,1759587079671,-546.41,0.00020821,2]
[389135684,1759587079680,-500.0,0.00020821,2]
[389135685,1759587079690,-597.42,0.00020821,2]
[389135686,1759587079699,-500.0,0.00020821,2]
[389135687,1759587079709,-4259.16,0.00020821,2]
[389135688,1759587079718,-5211.29,0.00020821,2]
[389135689,1759587079728,-508.88976109,0.00020822,2]
[389135690,1759587079738,-500.0,0.00020822,2]
[389135691,1759587079748,-1624.0,0.00020822,2]
[389135692,1759587079758,-500.0,0.00020822,2]
[389135693,1759587079768,-282.76206442,0.00020822,2]
[389135694,1759587079777,-500.0,0.00020822,2]
[389135695,1759587079787,-500.0,0.00020822,2]
[389135696,1759587079796,-1515.50592954,0.00020868,2]
[389135697,1759587079805,-1500.0,0.00020868,2]
[389135698,1759587079815,-500.0,0.00020881,2]
[389135699,1759587079824,-500.0,0.00020881,2]
[389135700,1759587079834,-642.55,0.00020882,2]
[389135701,1759587079844,-297.15891139,0.00020882,2]
[389135702,1759587079854,-500.0,0.00020882,2]
[389135703,1759587079863,-816.17,0.00020882,2]
[389135704,1759587079872,-1471.55,0.00020882,2]
[389135705,1759587079882,-500.0,0.00020882,2]
[389135706,1759587079892,-756.71,0.00020882,2]
[389135707,1759587079901,-920.13,0.00020882,2]
[389135708,1759587079911,-966.5,0.00020882,2]
[389135709,1759587079921,-500.0,0.00020882,2]
[389135710,1759587079931,-500.0,0.00020882,2]
[389135711,1759587079941,-1265.8,0.00020882,2]
[389135712,1759587079951,-500.0,0.00020882,2]
[389135713,1759587079960,-500.0,0.00020882,2]
[389135714,1759587079969,-500.0,0.00020882,2]
[389135715,1759587079978,-500.0,0.00020882,2]
[389135716,1759587079988,-500.0,0.00020882,2]
[389135717,1759587079997,-500.0,0.00020882,2]
[389135718,1759587080007,-500.0,0.00020882,2]
[389135719,1759587080016,-500.0,0.00020882,2]
[389135720,1759587080026,-567.84,0.00020882,2]
[389135721,1759587080035,-500.0,0.00020882,2]
[389135722,1759587080045,-500.0,0.00020882,2]
[389135723,1759587080055,-500.0,0.00020882,2]
[389135724,1759587080064,-825.92,0.00020882,2]
[389135725,1759587080073,-500.0,0.00020882,2]
[389135726,1759587080083,-500.0,0.00020882,2]
[389135727,1759587080093,-500.0,0.00020882,2]
[389135728,1759587080102,-500.0,0.00020882,2]
[389135729,1759587080111,-500.0,0.00020882,2]
[389135730,1759587080121,-539.07407112,0.00020882,2]
[389135731,1759587080130,-913.53,0.00020882,2]
[389135732,1759587080139,-500.0,0.00020882,2]
[389135733,1759587080150,-500.0,0.00020882,2]
[389135734,1759587080160,-841.49,0.00020882,2]
[389135735,1759587080169,-500.0,0.00020882,2]
[389135736,1759587080178,-500.0,0.00020882,2]
[389135737,1759587080187,-2029.7,0.00020882,2]
[389135738,1759587080196,-633.78,0.00020882,2]
[389135739,1759587080328,-500.0,0.00020882,2]
[389135740,1759587080340,-1538.14,0.00020882,2]
[389135741,1759587080350,-500.0,0.00020882,2]
[389135742,1759587080359,-500.0,0.00020882,2]
[389135743,1759587080369,-500.0,0.00020882,2]
[389135744,1759587080379,-500.0,0.00020882,2]
[389135745,1759587080389,-646.53,0.00020882,2]
[389135746,1759587080398,-500.0,0.00020893,2]
[389135747,1759587080407,-811.65,0.00020893,2]
[389135748,1759587080417,-500.0,0.00020893,2]
[389135749,1759587080426,-500.0,0.00020893,2]
[389135750,1759587080435,-515.11,0.00020893,2]
[389135751,1759587080445,-500.0,0.00020893,2]
[389135752,1759587080456,-500.0,0.00020893,2]
[389135753,1759587080465,-500.0,0.00020893,2]
[389135754,1759587080475,-612.17,0.00020893,2]
[389135755,1759587080485,-700.87,0.00020893,2]
[389135756,1759587080494,-500.0,0.00020893,2]
[389135757,1759587080504,-500.0,0.00020893,2]
[389135758,1759587080513,-500.0,0.00020893,2]
[389135759,1759587080523,-500.0,0.00020893,2]
[389135760,1759587080532,-1680.0,0.00020898,2]
[389135761,1759587080542,-420.0,0.00020898,2]
[389135762,1759587080552,-584.0,0.000209,2]
[389135763,1759587080562,-2000.0,0.00020916,2]
[389135764,1759587080571,-157.21954893,0.00020936,2]
[389135765,1759587080580,-150.0,0.00021026,2]
[389135766,1759587080590,-264.91,0.00021026,2]
[389135767,1759587080599,-150.363,0.00021026,2]
[389135768,1759587080608,-228.203,0.00021026,2]
[389135769,1759587080617,-250.0,0.00021026,2]
[389135770,1759587080627,-151.36,0.00021026,2]
[389135771,1759587080636,-295.223,0.00021026,2]
[389135772,1759587080645,-1003.27442745,0.00021068,2]
[389135773,1759587080657,-1620.12612654,0.00021068,2]
[389135774,1759587080666,-1500.0,0.00021068,2]
[389135775,1759587080676,-622.57948836,0.00021068,2]
[389135776,1759587080686,-566.32025163,0.00021068,2]
[389135777,1759587080697,-612.80898852,0.00021068,2]
[389135778,1759587080707,-1500.0,0.00021068,2]
[389135779,1759587080717,-1500.0,0.00021068,2]
[389135780,1759587080726,-1532.63641154,0.00021068,2]
[389135781,1759587080739,-1500.0,0.00021068,2]
[389135782,1759587080748,-1500.0,0.00021068,2]
[389135783,1759587080758,-1500.0,0.00021068,2]
[389135784,1759587080767,-1500.0,0.00021068,2]
[389135785,1759587080777,-1500.0,0.00021068,2]
[389135786,1759587080786,-1500.0,0.00021068,2]
[389135787,1759587080796,-1500.0,0.00021068,2]
[389135788,1759587080806,-1500.0,0.00021068,2]
[389135789,1759587080816,-1500.0,0.00021068,2]
[389135790,1759587080826,-1500.0,0.00021068,2]
[389135791,1759587080835,-1500.0,0.00021068,2]
[389135792,1759587080846,-1016.88134162,0.00021068,2]
[389135793,1759587080856,-1500.0,0.00021068,2]
[389135794,1759587080866,-1500.0,0.00021068,2]
[389135795,1759587080876,-1500.0,0.00021068,2]
[389135796,1759587080885,-1500.0,0.00021068,2]
[389135797,1759587080895,-1500.0,0.00021068,2]
[389135798,1759587080904,-1500.0,0.00021068,2]
[389135799,1759587080913,-1500.0,0.00021068,2]
[389135800,1759587080923,-1500.0,0.00021068,2]
[389135801,1759587080934,-1500.0,0.00021068,2]
[389135802,1759587080944,-778.29852331,0.00021068,2]
[389135803,1759587080953,-1500.0,0.00021068,2]
[389135804,1759587080963,-1500.0,0.00021068,2]
[389135805,1759587080972,-1500.0,0.00021068,2]
[389135806,1759587080982,-1500.0,0.00021068,2]
[389135807,1759587080992,-1500.0,0.00021068,2]
[389135808,1759587081001,-1500.0,0.00021068,2]
[389135809,1759587081011,-1500.0,0.00021068,2]
[389135810,1759587081020,-1500.0,0.00021068,2]
[389135811,1759587081030,-155.0,0.00021095,2]
[389135812,1759587081039,-500.0,0.00021095,2]
[389135813,1759587081049,-500.0,0.00021095,2]
[389135814,1759587081059,-669.27,0.00021095,2]
[389135815,1759587081069,-500.0,0.00021095,2]
[389135816,1759587081079,-500.0,0.00021095,2]
[389135817,1759587081089,-500.0,0.00021095,2]
[389135818,1759587081100,-875.2,0.00021095,2]
[389135819,1759587081109,-500.0,0.00021095,2]
[389135820,1759587081119,-500.0,0.00021095,2]
[389135821,1759587081128,-500.0,0.00021095,2]
[389135822,1759587081138,-836.97,0.00021095,2]
[389135823,1759587081146,-500.0,0.00021095,2]
[389135824,1759587081156,-587.09,0.00021095,2]
[389135825,1759587081166,-2784.11,0.00021095,2]
[389135826,1759587081176,-1878.18,0.00021095,2]
[389135827,1759587081185,-500.0,0.00021095,2]
[389135828,1759587081196,-500.0,0.00021095,2]
[389135829,1759587081206,-584.94900917,0.00021095,2]
[389135830,1759587081216,-1472.77,0.00021095,2]
[389135831,1759587081226,-500.0,0.00021095,2]
[389135832,1759587081236,-500.0,0.00021095,2]
[389135833,1759587081245,-700.24,0.00021095,2]
[389135834,1759587081255,-500.0,0.00021095,2]
[389135835,1759587081265,-1477.21,0.00021095,2]
[389135836,1759587081276,-2712.04,0.00021095,2]
[389135837,1759587081286,-500.0,0.00021095,2]
[389135838,1759587081296,-1053.54,0.00021095,2]
[389135839,1759587081305,-863.98,0.00021095,2]
[389135840,1759587081315,-500.0,0.00021095,2]
[389135841,1759587081324,-627.1,0.00021095,2]
[389135842,1759587081334,-500.0,0.00021095,2]
[389135843,1759587081344,-500.0,0.00021095,2]
[389135844,1759587081354,-558.65,0.00021095,2]
[389135845,1759587081363,-500.0,0.00021095,2]
[389135846,1759587081373,-761.81,0.00021095,2]
[389135847,1759587081383,-500.0,0.00021095,2]
[389135848,1759587081392,-987.82,0.00021095,2]
[389135849,1759587081402,-772.17,0.00021095,2]
[389135850,1759587081411,-500.0,0.00021095,2]
[389135851,1759587081420,-3073.86,0.00021095,2]
[389135852,1759587081430,-682.18,0.00021095,2]
[389135853,1759587081439,-874.08,0.00021095,2]
[389135854,1759587081448,-602.54,0.00021095,2]
[389135855,1759587081457,-592.41,0.00021095,2]
[389135856,1759587081467,-500.0,0.00021095,2]
[389135857,1759587081476,-765.97,0.00021095,2]
[389135858,1759587081486,-1314.15,0.00021095,2]
[389135859,1759587081495,-500.0,0.00021095,2]
[389135860,1759587081504,-500.0,0.00021095,2]
[389135861,1759587081514,-705.66,0.00021095,2]
[389135862,1759587081525,-1302.5,0.00021095,2]
[389135863,1759587081534,-695.67,0.00021095,2]
[389135864,1759587081544,-500.0,0.00021095,2]
[389135865,1759587081553,-1830.47,0.00021095,2]
[389135866,1759587081563,-500.0,0.00021095,2]
[389135867,1759587081572,-789.01,0.00021095,2]
[389135868,1759587081583,-500.0,0.00021095,2]
[389135869,1759587081592,-933.1,0.00021095,2]
[389135870,1759587081602,-6406.25,0.00021095,2]
[389135871,1759587081613,-500.0,0.00021095,2]
[389135872,1759587081623,-1426.03,0.00021095,2]
[389135873,1759587081633,-1683.3,0.00021095,2]
[389135874,1759587081643,-3799.61,0.00021095,2]
[389135875,1759587081652,-500.0,0.00021095,2]
[389135876,1759587081661,-1077.63,0.00021095,2]
[389135877,1759587081671,-994.5,0.00021095,2]
[389135878,1759587081681,-1634.28,0.00021095,2]
[389135879,1759587081691,-4955.65,0.00021095,2]
[389135880,1759587081701,-988.75,0.00021095,2]
[389135881,1759587081711,-500.0,0.00021095,2]
[389135882,1759587081720,-500.4,0.00021095,2]
[389135883,1759587081729,-2843.73,0.00021095,2]
[389135884,1759587081740,-2387.49,0.00021095,2]